bitfinex/quotes_SOLUSD_20230102
["timestamp","ask_amount","ask_price","bid_price","bid_amount"]
[1672660829574,90.9148,11.049,11.039,98.04]
[1672660830203,22.9448,11.049,11.039,98.04]
[1672660830424,22.9448,11.049,11.04,17.0]
[1672660830618,22.9448,11.049,11.041,68.02]
[1672660830816,22.9448,11.049,11.042,30.0]
[1672660831661,22.9448,11.049,11.041,30.0]
[1672660832096,22.9448,11.049,11.04,85.03]
[1672660832498,90.9148,11.049,11.04,85.03]
[1672660833356,90.9148,11.049,11.041,41.07743158]
[1672660834617,20.0,11.048,11.041,41.07743158]
[1672660835226,20.0,11.048,11.041,11.07743158]
[1672660835775,20.0,11.048,11.041,41.07743158]
[1672660835991,67.99,11.047,11.041,41.07743158]
[1672660836298,20.0,11.048,11.041,41.07743158]
[1672660836299,87.98,11.048,11.041,41.07743158]
[1672660837038,87.98,11.048,11.041,11.07743158]
[1672660844078,20.0,11.048,11.043,30.0]
[1672660844704,20.0,11.048,11.042,17.0]
[1672660845241,20.0,11.048,11.043,11.05591224]
[1672660847454,67.97,11.049,11.044,17.0]
[1672660847660,67.94,11.054,11.045,30.0]
[1672660847975,73.79446918,11.054,11.045,168.2571]
[1672660848403,73.79446918,11.054,11.046,11.02364783]
[1672660849121,73.79446918,11.054,11.046,35.65874783]
[1672660849321,30.0,11.053,11.046,35.65874783]
[1672660849527,67.96,11.052,11.046,35.65874783]
[1672660852489,67.94,11.053,11.046,35.65874783]
[1672660852689,30.0,11.054,11.047,23.8157]
[1672660852889,67.94,11.053,11.047,23.8157]
[1672660853327,67.93,11.055,11.048,11.00214797]
[1672660853536,67.93,11.056,11.048,65.25884797]
[1672660853748,30.0,11.056,11.048,65.25884797]
[1672660853946,67.93,11.055,11.048,65.25884797]
[1672660854381,67.93,11.056,11.048,65.25884797]
[1672660854591,67.93,11.056,11.048,35.25884797]
[1672660854786,67.93,11.056,11.048,65.25884797]
[1672660855003,67.93,11.056,11.048,35.25884797]
[1672660855327,30.0,11.056,11.048,35.25884797]
[1672660855534,67.93,11.055,11.048,35.25884797]
[1672660856255,67.92,11.057,11.049,30.0]
[1672660856485,67.92,11.057,11.048,35.25884797]
[1672660857017,67.92,11.057,11.049,47.0]
[1672660857200,23.8166,11.058,11.05,67.96]
[1672660857410,23.8166,11.058,11.052,30.0]
[1672660857633,30.0,11.063,11.053,17.0]
[1672660857850,87.89,11.062,11.053,17.0]
[1672660858057,30.0,11.061,11.051,30.0]
[1672660858272,87.9,11.06,11.051,30.0]
[1672660858468,87.9,11.06,11.052,17.0]
[1672660858678,87.9,11.06,11.051,30.0]
[1672660858889,87.9,11.06,11.052,17.0]
[1672660859101,20.0,11.06,11.052,17.0]
[1672660861316,30.0,11.059,11.053,10.94843234]
[1672660861533,87.91,11.058,11.053,10.94843234]
[1672660861726,30.0,11.057,11.053,10.94843234]
[1672660861937,67.93,11.056,11.053,10.94843234]
[1672660862259,67.93,11.056,11.048,24.2567]
[1672660862880,67.92,11.057,11.049,30.0]
[1672660863306,67.92,11.057,11.048,54.2567]
[1672660863526,109.31917514,11.056,11.048,24.2567]
[1672660863726,67.93,11.055,11.048,133.2673]
[1672660864673,67.92,11.057,11.048,133.2673]
[1672660864882,30.0,11.056,11.048,133.1873]
[1672660865084,67.93,11.055,11.048,133.1873]
[1672660865294,67.93,11.055,11.049,10.99140095]
[1672660865832,67.93,11.056,11.049,10.99140095]
[1672660866041,30.0,11.055,11.049,10.99140095]
[1672660866252,67.94,11.054,11.049,10.99140095]
[1672660866806,67.93,11.056,11.049,10.99140095]
[1672660867410,30.0,11.056,11.049,10.99140095]
[1672660867729,67.93,11.055,11.049,10.99140095]
[1672660868563,67.92,11.057,11.049,10.99140095]
[1672660868774,30.0,11.056,11.049,10.99140095]
[1672660868985,30.0,11.054,11.049,10.99140095]
[1672660869314,67.94,11.053,11.049,10.99140095]
[1672660869506,30.0,11.054,11.049,10.99140095]
[1672660869717,67.94,11.053,11.049,10.99140095]
[1672660869926,30.0,11.056,11.049,10.99140095]
[1672660869927,67.93,11.055,11.049,10.99140095]
[1672660870563,30.0,11.054,11.049,10.99140095]
[1672660870788,67.94,11.053,11.049,10.99140095]
[1672660871631,67.93,11.055,11.049,10.99140095]
[1672660871838,67.93,11.056,11.049,10.99140095]
[1672660872995,30.0,11.055,11.049,10.99140095]
[1672660873190,67.94,11.054,11.049,10.99140095]
[1672660873397,67.93,11.056,11.049,10.99140095]
[1672660877725,67.93,11.056,11.049,40.99140095]
[1672660878556,23.1922,11.057,11.051,30.0]
[1672660878759,20.0,11.058,11.051,30.0]
[1672660879085,20.0,11.058,11.052,17.0]
[1672660879300,20.0,11.058,11.052,27.95007665]
[1672660879610,20.0,11.058,11.052,10.95007665]
[1672660880124,87.91,11.058,11.052,10.95007665]
[1672660880337,87.91,11.058,11.049,97.97]
[1672660880664,87.91,11.058,11.05,17.0]
[1672660882343,87.91,11.058,11.051,10.96081783]
[1672660882745,87.91,11.058,11.051,40.96081783]
[1672660883386,9.3186803,11.076,11.052,37.0]
[1672660883601,22.9046,11.066,11.053,97.94]
[1672660883802,22.9046,11.066,11.054,17.0]
[1672660884000,67.87,11.065,11.054,17.0]
[1672660884213,67.87,11.065,11.055,185.4189]
[1672660884435,67.87,11.065,11.056,17.0]
[1672660884650,67.87,11.065,11.055,185.4189]
[1672660884850,30.0,11.064,11.055,117.4889]
[1672660885059,67.88,11.063,11.055,117.4889]
[1672660886319,67.88,11.063,11.056,10.90713136]
[1672660887367,67.88,11.064,11.056,10.90713136]
[1672660887592,67.88,11.064,11.056,122.26933136]
[1672660887807,30.0,11.063,11.056,122.26933136]
[1672660887995,87.89,11.062,11.056,10.90713136]
[1672660888212,30.0,11.061,11.056,10.90713136]
[1672660888415,30.0,11.061,11.049,97.97]
[1672660888416,87.9,11.06,11.049,97.97]
[1672660888626,87.9,11.06,11.05,30.0]
[1672660888854,87.9,11.06,11.051,30.0]
[1672660890320,87.9,11.06,11.052,27.95007665]
[1672660893376,67.9,11.06,11.052,27.95007665]
[1672660893687,30.0,11.064,11.054,30.0]
[1672660893889,67.88,11.063,11.055,131.7122]
[1672660895247,67.88,11.063,11.056,30.0]
[1672660895585,67.87,11.065,11.057,17.0]
[1672660896088,30.0,11.066,11.057,17.0]
[1672660896298,67.87,11.065,11.057,156.3388]
[1672660897778,67.87,11.065,11.057,139.3388]
[1672660898517,67.87,11.065,11.058,10.88567036]
[1672660899137,67.86,11.066,11.058,10.88567036]
[1672660900399,30.0,11.065,11.058,10.88567036]
[1672660900605,30.0,11.063,11.058,10.88567036]
[1672660900823,67.88,11.064,11.058,10.88567036]
[1672660903122,67.86,11.066,11.058,10.88567036]
[1672660903345,67.86,11.066,11.058,120.95757036]
[1672660905773,30.0,11.065,11.058,120.95757036]
[1672660905988,67.88,11.064,11.059,17.0]
[1672660906186,30.0,11.065,11.059,17.0]
[1672660906389,30.0,11.065,11.059,27.87494278]
[1672660906718,67.86,11.066,11.059,10.87494278]
[1672660909558,30.0,11.065,11.059,10.87494278]
[1672660910182,67.86,11.066,11.059,10.87494278]
[1672660911861,67.86,11.066,11.059,40.87494278]
[1672660912074,67.86,11.066,11.06,17.0]
[1672660912286,67.86,11.066,11.06,27.86421713]
[1672660913759,91.9772,11.067,11.06,27.86421713]
[1672660914497,24.1172,11.067,11.06,27.86421713]
[1672660916385,24.1172,11.067,11.061,30.0]
[1672660916597,24.1172,11.067,11.062,17.0]
[1672660916817,24.6143,11.068,11.062,17.0]
[1672660917016,30.0,11.071,11.062,17.0]
[1672660917229,87.84,11.07,11.062,17.0]
[1672660917439,87.84,11.07,11.063,10.83205182]
[1672660920710,30.0,11.069,11.063,10.83205182]
[1672660920901,87.85,11.068,11.063,10.83205182]
[1672660921113,67.84,11.069,11.063,10.83205182]
[1672660924285,30.0,11.068,11.058,133.2444]
[1672660924499,67.86,11.067,11.058,133.2444]
[1672660925025,67.86,11.067,11.059,97.91]
[1672660925228,67.86,11.067,11.059,30.0]
[1672660925440,67.86,11.067,11.06,17.0]
[1672660925644,67.85,11.068,11.06,17.0]
[1672660928379,67.85,11.068,11.061,10.85349342]
[1672660930389,67.85,11.068,11.059,30.0]
[1672660930614,67.85,11.068,11.06,17.0]
[1672660932596,67.85,11.068,11.061,10.85349342]
[1672660932791,67.85,11.068,11.062,17.0]
[1672660934477,67.85,11.068,11.061,10.85349342]
[1672660935423,67.85,11.068,11.059,30.0]
[1672660935950,67.85,11.068,11.06,17.0]
[1672660936998,67.85,11.068,11.058,201.1544]
[1672660936999,67.85,11.068,11.059,17.0]
[1672660937437,67.85,11.068,11.059,47.0]
[1672660938371,67.85,11.068,11.059,17.0]
[1672660938691,30.0,11.067,11.059,17.0]
[1672660938900,30.0,11.067,11.058,201.1544]
[1672660939325,30.0,11.067,11.06,10.86421713]
[1672660939747,67.85,11.068,11.06,10.86421713]
[1672660940488,67.85,11.068,11.058,133.2444]
[1672660940894,30.0,11.067,11.058,133.2444]
[1672660941114,67.86,11.066,11.058,133.2444]
[1672660942383,67.86,11.066,11.059,10.87494278]
[1672660944880,30.0,11.066,11.059,10.87494278]
[1672660945090,67.87,11.065,11.059,10.87494278]
[1672660946566,30.0,11.064,11.059,10.87494278]
[1672660946794,30.0,11.062,11.059,10.87494278]
[1672660946990,67.89,11.061,11.059,10.87494278]
[1672660949196,30.0,11.06,11.059,10.87494278]
[1672660949408,117.9,11.06,11.059,10.87494278]
[1672660949630,87.9,11.06,11.059,10.87494278]
[1672660950467,87.9,11.06,11.049,30.0]
[1672660950678,87.91,11.059,11.049,30.0]
[1672660950998,87.91,11.059,11.05,17.0]
[1672660951405,20.0,11.059,11.05,27.97156096]
[1672660951616,20.0,11.059,11.051,30.0]
[1672660953194,67.91,11.058,11.051,30.0]
[1672660953407,20.0,11.059,11.051,30.0]
[1672660954133,20.0,11.059,11.05,10.97156096]
[1672660954468,67.91,11.058,11.052,10.95007665]
[1672660954658,20.0,11.059,11.052,10.95007665]
[1672660955412,20.0,11.059,11.049,97.97]
[1672660955604,67.91,11.058,11.049,97.97]
[1672660957410,67.91,11.058,11.05,17.0]
[1672660957616,87.91,11.059,11.05,17.0]
[1672660958562,87.91,11.059,11.049,97.97]
[1672660958563,87.91,11.059,11.051,10.96081783]
[1672660959410,87.91,11.059,11.049,97.97]
[1672660959596,87.91,11.059,11.051,30.0]
[1672660961070,87.91,11.059,11.049,97.97]
[1672660961297,87.91,11.059,11.049,30.0]
[1672660964557,87.91,11.059,11.05,17.0]
[1672660967066,87.91,11.059,11.049,97.97]
[1672660968019,87.91,11.059,11.049,30.0]
[1672660970347,87.91,11.059,11.048,122.9494]
[1672660970540,30.0,11.058,11.048,92.9494]
[1672660970752,67.92,11.057,11.048,92.9494]
[1672660971920,67.92,11.057,11.049,30.0]
[1672660972130,67.91,11.058,11.049,30.0]
[1672660976441,67.91,11.058,11.05,10.97156096]
[1672660982423,67.91,11.058,11.051,17.0]
[1672660982630,30.0,11.063,11.053,30.0]
[1672660982847,67.89,11.062,11.054,23.1031]
[1672660983060,30.0,11.061,11.054,23.1031]
[1672660983267,67.9,11.06,11.054,23.1031]
[1672660983477,67.9,11.06,11.054,34.02472348]
[1672660984529,67.9,11.06,11.054,10.92162348]
[1672660984729,30.0,11.059,11.054,10.92162348]
[1672660984937,87.91,11.058,11.054,10.92162348]
[1672660986416,87.91,11.058,11.048,30.0]
[1672660987371,87.91,11.058,11.049,10.97532939]
[1672660992643,105.3178958,11.057,11.049,10.97532939]
[1672660992849,30.0,11.055,11.049,10.97532939]
[1672660993066,87.94,11.054,11.049,10.97532939]
[1672660993265,30.0,11.053,11.049,10.97532939]
[1672660993478,87.95,11.052,11.034,225.3351]
[1672660993706,30.0,11.049,11.034,225.3351]
[1672660993893,30.0,11.047,11.036,30.0]
[1672660994217,30.0,11.045,11.037,134.5544]
[1672660994537,68.0,11.044,11.04,11.07212261]
[1672660995375,68.0,11.044,11.038,110.4664]
[1672660997796,68.0,11.044,11.039,12.1996209]
[1672661003466,67.99,11.046,11.039,42.1996209]
[1672661003790,67.98,11.047,11.039,12.1996209]
[1672661003993,112.9454,11.048,11.04,30.0]
[1672661004204,87.97,11.048,11.04,30.0]
[1672661004532,87.97,11.048,11.04,42.18670344]
[1672661004848,20.0,11.048,11.04,42.18670344]
[1672661005045,20.0,11.049,11.04,42.18670344]
[1672661005258,67.97,11.048,11.04,42.18670344]
[1672661006614,20.0,11.049,11.04,42.18670344]
[1672661006835,20.0,11.05,11.04,42.18670344]
[1672661007160,67.97,11.049,11.041,17.0]
[1672661007366,20.0,11.048,11.041,17.0]
[1672661007982,20.0,11.049,11.041,17.0]
[1672661008411,20.0,11.049,11.042,12.16087555]
[1672661011351,20.0,11.05,11.043,17.0]
[1672661011571,67.97,11.049,11.043,17.0]
[1672661011985,20.0,11.048,11.043,17.0]
[1672661012403,20.0,11.048,11.044,12.13505702]
[1672661013146,20.0,11.05,11.044,12.13505702]
[1672661013370,20.0,11.05,11.042,30.0]
[1672661013901,30.0,11.05,11.042,30.0]
[1672661014093,20.0,11.049,11.04,107.35]
[1672661014299,20.0,11.049,11.041,17.0]
[1672661015990,20.0,11.05,11.041,17.0]
[1672661016204,67.96,11.051,11.042,16.71937]
[1672661016406,67.92,11.056,11.044,30.0]
[1672661016617,67.92,11.056,11.045,17.0]
[1672661016928,30.0,11.055,11.043,225.2949]
[1672661017144,67.94,11.054,11.045,157.2949]
[1672661017354,30.0,11.053,11.045,157.2949]
[1672661017561,67.95,11.052,11.045,157.2949]
[1672661017877,30.0,11.051,11.045,157.2949]
[1672661018089,67.95,11.052,11.045,157.2949]
[1672661019261,30.0,11.053,11.045,157.2949]
[1672661019460,67.95,11.052,11.045,157.2949]
[1672661020402,67.95,11.052,11.046,12.10924783]
[1672661022827,30.0,11.051,11.046,12.10924783]
[1672661023153,30.0,11.049,11.046,12.10924783]
[1672661023359,20.0,11.048,11.046,12.10924783]
[1672661023553,20.0,11.048,11.039,98.03]
[1672661024404,20.0,11.048,11.04,12.18670344]
[1672661025344,20.0,11.048,11.041,17.0]
[1672661025552,20.0,11.049,11.041,17.0]
[1672661025767,20.0,11.049,11.042,30.0]
[1672661025980,20.0,11.049,11.041,17.0]
[1672661026398,20.0,11.049,11.04,21.46670344]
[1672661026399,20.0,11.049,11.04,12.18670344]
[1672661026608,97.97,11.048,11.04,12.18670344]
[1672661027451,67.97,11.048,11.04,12.18670344]
[1672661030389,30.0,11.047,11.04,12.18670344]
[1672661030614,30.0,11.045,11.04,12.18670344]
[1672661031343,30.0,11.045,11.038,134.4467]
[1672661032403,67.99,11.046,11.039,12.1996209]
[1672661034286,30.0,11.045,11.039,12.1996209]
[1672661034698,67.99,11.046,11.039,12.1996209]
[1672661034907,24.7034,11.048,11.039,12.1996209]
[1672661034908,67.98,11.047,11.04,30.0]
[1672661035236,92.6734,11.048,11.04,98.02]
[1672661035550,92.6734,11.048,11.04,110.20670344]
[1672661035771,92.6734,11.048,11.04,42.18670344]
[1672661036472,24.7034,11.048,11.04,42.18670344]
[1672661039877,24.7034,11.048,11.04,12.18670344]
[1672661040092,97.98,11.047,11.04,12.18670344]
[1672661040698,67.98,11.047,11.04,12.18670344]
[1672661042913,30.0,11.046,11.04,12.18670344]
[1672661043324,67.98,11.047,11.04,12.18670344]
[1672661049965,30.0,11.046,11.04,12.18670344]
[1672661051648,67.98,11.047,11.04,12.18670344]
[1672661052065,30.0,11.046,11.04,12.18670344]
[1672661052258,30.0,11.044,11.04,12.18670344]
[1672661052677,30.0,11.042,11.04,12.12129976]
[1672661052889,68.0,11.043,11.04,12.12129976]
[1672661053099,30.0,11.042,11.04,12.12129976]
[1672661053417,68.02,11.041,11.04,12.12129976]
[1672661055427,68.02,11.041,11.038,123.41056307]
[1672661055634,68.02,11.041,11.038,12.18016307]
[1672661057424,30.0,11.04,11.038,12.18016307]
[1672661057726,68.03,11.039,11.038,12.18016307]
[1672661057935,88.03,11.039,11.038,12.18016307]
[1672661058567,88.03,11.039,11.028,30.0]
[1672661058774,30.0,11.037,11.029,23.1525]
[1672661058988,98.04,11.037,11.029,23.1525]
[1672661059633,104.66109807,11.037,11.025,10.17166693]
[1672661059843,30.0,11.035,11.025,10.17166693]
[1672661060041,30.0,11.033,11.025,10.17166693]
[1672661060253,68.07,11.032,11.025,10.17166693]
[1672661061096,68.06,11.034,11.025,10.17166693]
[1672661061315,68.06,11.034,11.025,197.91736693]
[1672661062153,30.0,11.033,11.025,167.91736693]
[1672661062381,68.07,11.032,11.025,167.91736693]
[1672661063211,45.7669,11.038,11.027,30.0]
[1672661063536,45.7669,11.038,11.03,9.36]
[1672661063739,20.0,11.039,11.031,85.08]
[1672661063953,20.0,11.04,11.032,30.0]
[1672661064367,68.03,11.039,11.032,40.2363069]
[1672661064570,20.0,11.038,11.032,40.2363069]
[1672661065207,68.02,11.041,11.033,17.0]
[1672661065515,68.0,11.044,11.035,30.0]
[1672661065725,68.0,11.044,11.036,118.2726]
[1672661065937,68.0,11.044,11.037,30.0]
[1672661066147,30.0,11.047,11.037,30.0]
[1672661066374,30.0,11.045,11.038,118.2726]
[1672661066583,67.90565115,11.044,11.038,118.2726]
[1672661067930,67.99,11.046,11.039,30.0]
[1672661068365,67.99,11.046,11.039,40.16090044]
[1672661068788,97.97,11.048,11.039,40.16090044]
[1672661069002,97.97,11.048,11.039,155.17970044]
[1672661070354,67.97,11.048,11.039,155.17970044]
[1672661070695,67.97,11.048,11.039,125.17970044]
[1672661072372,30.0,11.048,11.039,125.17970044]
[1672661072571,67.98,11.047,11.039,125.17970044]
[1672661073524,30.0,11.046,11.039,125.17970044]
[1672661073721,67.99,11.045,11.039,125.17970044]
[1672661075095,30.0,11.046,11.039,125.17970044]
[1672661075305,67.99,11.045,11.039,125.17970044]
[1672661075716,30.0,11.044,11.039,10.16090044]
[1672661075926,88.0,11.043,11.039,10.16090044]
[1672661076146,30.0,11.042,11.039,10.16090044]
[1672661076359,68.02,11.041,11.03,68.08]
[1672661076562,30.0,11.039,11.029,114.9431]
[1672661076766,68.04,11.038,11.029,114.9431]
[1672661077204,152.71262143,11.038,11.029,114.9431]
[1672661077616,30.0,11.037,11.029,114.9431]
[1672661077820,68.05,11.036,11.029,114.9431]
[1672661078031,30.0,11.035,11.029,114.9431]
[1672661078241,68.06,11.034,11.029,114.9431]
[1672661078668,30.0,11.033,11.029,114.9431]
[1672661078876,68.07,11.032,11.029,114.9431]
[1672661079201,68.07,11.032,11.025,24.4001]
[1672661079390,68.06,11.034,11.023,117.8078]
[1672661079595,68.06,11.034,11.024,30.0]
[1672661080252,68.06,11.034,11.025,0.41355695]
[1672661080557,68.06,11.034,11.025,0.41351944]
[1672661082867,68.05,11.036,11.025,0.41351944]
[1672661083192,68.05,11.036,11.026,30.0]
[1672661083618,68.05,11.036,11.026,145.2848]
[1672661084248,68.04,11.037,11.026,145.2848]
[1672661084446,68.04,11.037,11.027,110.3192]
[1672661084669,68.04,11.037,11.028,30.0]
[1672661085084,68.04,11.037,11.028,140.3192]
[1672661085609,68.03,11.039,11.028,140.3192]
[1672661085822,20.0,11.038,11.03,30.0]
[1672661086029,68.04,11.037,11.029,110.3192]
[1672661086672,68.04,11.037,11.03,30.0]
[1672661090146,20.0,11.038,11.03,30.0]
[1672661090778,20.0,11.039,11.03,30.0]
[1672661090971,20.0,11.039,11.031,17.0]
[1672661091184,20.0,11.039,11.03,147.1413]
[1672661091509,20.0,11.039,11.03,156.4913]
[1672661093597,30.0,11.038,11.03,117.1413]
[1672661093818,98.04,11.038,11.03,117.1413]
[1672661096144,68.04,11.038,11.03,117.1413]
[1672661105371,30.0,11.037,11.03,117.1413]
[1672661105595,68.05,11.036,11.03,117.1413]
[1672661107378,30.0,11.036,11.03,117.1413]
[1672661107704,68.04,11.037,11.03,117.1413]
[1672661108119,68.04,11.038,11.03,117.1413]
[1672661108333,68.04,11.038,11.03,141.0765]
[1672661112104,20.0,11.039,11.03,141.0765]
[1672661112868,20.0,11.039,11.03,209.1565]
[1672661113784,88.03,11.039,11.03,209.1565]
[1672661113995,88.03,11.039,11.03,141.0765]
[1672661114953,47.5345,11.04,11.032,30.0]
[1672661115269,88.03,11.039,11.032,30.0]
[1672661116004,88.03,11.039,11.031,30.0]
[1672661117266,88.03,11.039,11.03,209.1565]
[1672661118199,88.03,11.039,11.031,30.0]
[1672661118620,30.0,11.038,11.03,209.1565]
[1672661118834,30.0,11.036,11.03,141.0765]
[1672661119364,68.04,11.037,11.03,141.0765]
[1672661121352,68.04,11.038,11.03,141.0765]
[1672661131146,68.04,11.038,11.031,30.0]
[1672661132811,68.04,11.038,11.03,141.0765]
[1672661133439,68.04,11.038,11.031,10.89504005]
[1672661133649,68.04,11.038,11.031,40.89504005]
[1672661136826,68.04,11.038,11.031,10.89504005]
[1672661139237,68.04,11.038,11.031,40.89504005]
[1672661139766,68.04,11.038,11.031,10.89504005]
[1672661145337,68.04,11.038,11.031,40.89504005]
[1672661146601,68.04,11.038,11.031,10.89504005]
[1672661156158,68.04,11.038,11.031,40.89504005]
[1672661156372,68.04,11.038,11.031,10.89504005]
[1672661158787,68.04,11.038,11.031,40.89504005]
[1672661166649,110.7469,11.039,11.031,40.89504005]
[1672661168863,110.7469,11.039,11.031,10.89504005]
[1672661169074,110.7469,11.039,11.031,40.89504005]
[1672661177072,110.7469,11.039,11.031,10.89504005]
[1672661177500,110.7469,11.039,11.031,40.89504005]
[1672661180859,110.7469,11.039,11.031,10.89504005]
[1672661182126,30.0,11.038,11.031,10.89504005]
[1672661182432,110.7469,11.039,11.031,10.89504005]
[1672661183173,110.7469,11.039,11.031,40.89504005]
[1672661186639,110.7469,11.039,11.031,10.89504005]
[1672661187352,110.7469,11.039,11.031,40.89504005]
[1672661191474,110.7469,11.039,11.031,10.89504005]
[1672661191682,110.7469,11.039,11.031,40.89504005]
[1672661191995,110.7469,11.039,11.031,10.89504005]
[1672661196498,110.7469,11.039,11.031,40.89504005]
[1672661197265,110.7469,11.039,11.031,10.89504005]
[1672661199348,30.0,11.038,11.031,10.89504005]
[1672661199559,68.04,11.037,11.031,10.89504005]
[1672661199779,68.04,11.038,11.031,10.89504005]
[1672661200502,68.04,11.038,11.031,40.89504005]
[1672661201144,68.04,11.038,11.031,10.89504005]
[1672661201351,68.04,11.038,11.031,40.89504005]
[1672661202615,68.04,11.038,11.031,10.89504005]
[1672661203571,30.0,11.037,11.031,10.89504005]
[1672661203785,68.05,11.036,11.031,10.89504005]
[1672661203995,68.04,11.038,11.031,10.89504005]
[1672661205890,30.0,11.037,11.031,10.89504005]
[1672661206090,68.05,11.036,11.031,10.89504005]
[1672661206307,30.0,11.035,11.031,10.89504005]
[1672661206621,30.0,11.033,11.03,141.0765]
[1672661206817,68.07,11.032,11.029,24.2882]
[1672661207028,68.07,11.032,11.026,23.9273]
[1672661207243,68.07,11.032,11.024,30.0]
[1672661207458,68.07,11.032,11.024,54.9635]
[1672661207658,68.05,11.035,11.03,10.90595737]
[1672661208076,30.0,11.035,11.03,10.90595737]
[1672661208286,68.06,11.034,11.03,10.90595737]
[1672661208490,68.06,11.034,11.027,159.5588]
[1672661209872,30.0,11.035,11.027,159.5588]
[1672661210082,30.0,11.033,11.028,22.5154]
[1672661210288,68.07,11.032,11.028,22.5154]
[1672661210498,68.07,11.032,11.028,33.44319796]
[1672661210939,68.07,11.032,11.028,10.92779796]
[1672661211565,68.07,11.032,11.021,232.8752]
[1672661211768,68.07,11.032,11.023,20.0]
[1672661212831,68.07,11.032,11.024,30.0]
[1672661213141,30.0,11.033,11.024,30.0]
[1672661213347,68.07,11.032,11.025,108.395]
[1672661213539,30.0,11.031,11.025,108.395]
[1672661213750,68.08,11.03,11.025,108.395]
[1672661214196,68.07,11.032,11.025,108.395]
[1672661214397,68.07,11.032,11.025,131.9767]
[1672661216397,30.0,11.033,11.025,131.9767]
[1672661216607,68.07,11.032,11.026,23.0354]
[1672661218284,68.07,11.033,11.026,23.0354]
[1672661219867,30.0,11.033,11.026,23.0354]
[1672661220057,68.07,11.032,11.026,23.0354]
[1672661221214,30.0,11.033,11.026,23.0354]
[1672661221423,68.07,11.032,11.026,53.0354]
[1672661221633,68.06,11.034,11.026,162.795]
[1672661222054,68.06,11.034,11.026,132.795]
[1672661225117,30.0,11.033,11.026,132.795]
[1672661225308,68.07,11.032,11.026,132.795]
[1672661225730,30.0,11.033,11.026,132.795]
[1672661225940,68.07,11.032,11.026,132.795]
[1672661227206,68.06,11.034,11.026,132.795]
[1672661227623,68.04,11.037,11.026,132.795]
[1672661227849,68.04,11.037,11.027,141.7944]
[1672661228048,68.04,11.037,11.028,30.0]
[1672661228479,68.04,11.037,11.028,171.7944]
[1672661229106,68.04,11.037,11.028,141.7944]
[1672661229315,30.0,11.036,11.028,141.7944]
[1672661229550,68.05,11.035,11.028,141.7944]
[1672661229942,30.0,11.034,11.028,141.7944]
[1672661230157,68.07,11.033,11.028,141.7944]
[1672661230904,30.0,11.034,11.028,141.7944]
[1672661231127,68.07,11.033,11.028,141.7944]
[1672661231859,30.0,11.034,11.028,141.7944]
[1672661233016,30.0,11.032,11.028,141.7944]